bitfinex-derivatives/quotes_BNBF0:USTF0_20250329
["timestamp","ask_amount","ask_price","bid_price","bid_amount"]
[1743220822483,0.29972542,614.27,613.02,5.16]
[1743220822784,0.32560032,614.25,613.02,5.16]
[1743220822980,0.29972542,614.24,613.02,5.16]
[1743220823285,0.32561622,614.22,613.02,5.16]
[1743220823586,0.29972542,614.21,613.02,5.16]
[1743220823779,0.32563213,614.19,613.02,5.16]
[1743220823978,0.29972542,614.18,613.02,5.16]
[1743220824176,0.32564803,614.16,613.02,5.16]
[1743220824376,0.29972542,614.15,613.02,5.16]
[1743220824581,0.32566394,614.13,613.02,5.16]
[1743220824777,0.29972542,614.12,613.02,5.16]
[1743220826882,0.28381056,614.11,613.02,5.16]
[1743220827079,0.29972542,614.1,613.02,5.16]
[1743220827283,0.32569046,614.08,613.02,5.16]
[1743220827486,0.29972542,614.07,613.02,5.16]
[1743220827685,0.32570637,614.05,613.02,5.16]
[1743220827885,0.29972542,614.04,613.02,5.16]
[1743220828385,0.32572228,614.02,613.02,5.16]
[1743220828590,0.2998518,614.01,613.02,5.16]
[1743220828787,0.2998518,614.0,613.02,5.16]
[1743220828988,0.2998518,613.99,613.02,5.16]
[1743220829179,0.32574881,613.97,613.02,5.16]
[1743220829384,0.2998518,613.96,613.02,5.16]
[1743220829581,0.32576473,613.94,613.02,5.16]
[1743220829785,0.2998518,613.93,613.02,5.16]
[1743220829984,0.32578065,613.91,613.02,5.16]
[1743220830184,0.2998518,613.9,613.02,5.16]
[1743220830383,0.32579657,613.88,613.02,5.16]
[1743220830586,0.2998518,613.87,613.02,5.16]
[1743220830788,0.32581249,613.85,613.02,5.16]
[1743220830987,0.2998518,613.84,613.02,5.16]
[1743220831183,0.32582841,613.82,613.02,5.16]
[1743220831385,0.2998518,613.81,613.02,5.16]
[1743220831586,0.32583903,613.8,613.02,5.16]
[1743220831786,0.2998518,613.79,613.02,5.16]
[1743220831987,0.32584965,613.78,613.02,5.16]
[1743220832186,0.2998518,613.77,613.02,5.16]
[1743220832387,0.32586027,613.76,613.02,5.16]
[1743220832585,0.2998518,613.75,613.02,5.16]
[1743220832782,0.32587088,613.74,613.02,5.16]
[1743220833088,0.2998518,613.73,613.02,5.16]
[1743220833389,0.3258815,613.72,613.02,5.16]
[1743220833593,0.2998518,613.71,613.02,5.16]
[1743220833782,0.32589212,613.7,613.02,5.16]
[1743220833990,0.2998518,613.69,613.02,5.16]
[1743220834190,0.32590275,613.68,613.02,5.16]
[1743220834384,0.2998518,613.67,613.02,5.16]
[1743220834589,0.32591337,613.66,613.02,5.16]
[1743220834887,0.2998518,613.65,613.02,5.16]
[1743220835089,0.32592399,613.64,613.02,5.16]
[1743220835290,0.2998518,613.63,613.02,5.16]
[1743220835490,0.32593461,613.62,613.02,5.16]
[1743220835790,0.2998518,613.61,613.02,5.16]
[1743220835990,0.62579172,613.61,613.02,5.16]
[1743220836185,0.32593992,613.61,613.02,5.16]
[1743220836686,0.58359764,613.6,613.02,5.16]
[1743220836889,0.28378395,613.6,613.02,5.16]
[1743220841394,0.32593992,613.61,613.02,5.16]
[1743220865819,0.2998051,613.6,613.02,5.16]
[1743220866319,0.32593992,613.61,613.02,5.16]
[1743220866714,0.28385686,613.59,613.02,5.16]
[1743220868418,0.32593992,613.61,613.02,5.16]
[1743220868619,0.28386844,613.58,613.02,5.16]
[1743220871313,0.32593992,613.61,613.02,5.16]
[1743220871718,0.28385686,613.57,613.02,5.16]
[1743220874422,0.32593992,613.61,613.02,5.16]
[1743220875624,0.28377585,613.6,613.02,5.16]
[1743220877324,0.32593992,613.61,613.02,5.16]
[1743220878625,0.28377122,613.6,613.02,5.16]
[1743220883327,0.32593992,613.61,613.02,5.16]
[1743220884628,0.28377006,613.6,613.02,5.16]
[1743220886426,0.32593992,613.61,613.02,5.16]
[1743220887734,0.28376544,613.6,613.02,5.16]
[1743220892343,0.32593992,613.61,613.02,5.16]
[1743220892733,0.29983151,613.6,613.02,5.16]
[1743220893641,0.28387076,613.59,613.02,5.16]
[1743220893836,0.29983151,613.58,613.02,5.16]
[1743220894138,0.29983952,613.57,613.02,5.16]
[1743220894338,0.29983952,613.58,613.02,5.16]
[1743220894533,0.28387076,613.59,613.02,5.16]
[1743220894737,0.29983922,613.58,613.02,5.16]
[1743220895740,0.29983922,613.6,613.02,5.16]
[1743220895932,0.29983922,613.59,613.02,5.16]
[1743220896135,0.29983922,613.6,613.02,5.16]
[1743220896739,0.28387076,613.59,613.02,5.16]
[1743220896942,0.29983922,613.58,613.02,5.16]
[1743220897345,0.28387076,613.59,613.02,5.16]
[1743220898448,0.32593992,613.61,613.02,5.16]
[1743220899650,0.60971461,613.61,613.02,5.16]
[1743220901452,0.32593992,613.61,613.02,5.16]
[1743220902751,0.6096961,613.61,613.02,5.16]
[1743220904052,0.32594524,613.6,613.02,5.16]
[1743220904549,0.29984881,613.59,613.02,5.16]
[1743220904752,0.32595586,613.58,613.02,5.16]
[1743220904947,0.29984881,613.57,613.02,5.16]
[1743220905152,0.32596649,613.56,613.02,5.16]
[1743220905353,0.29984881,613.55,613.02,5.16]
[1743220905554,0.32597711,613.54,613.02,5.16]
[1743220905854,0.29984881,613.53,613.02,5.16]
[1743220906054,0.32598774,613.52,613.02,5.16]
[1743220916665,0.60984924,613.52,613.02,5.16]
[1743220922366,0.32598774,613.52,613.02,5.16]
[1743220922871,0.28388813,613.51,613.02,5.16]
[1743220925466,0.32598774,613.52,613.02,5.16]
[1743220926765,0.28383256,613.51,613.02,5.16]
[1743220926964,0.32599837,613.5,613.02,5.16]
[1743220928770,0.29991283,613.49,613.02,5.16]
[1743220929274,0.32600899,613.48,613.02,5.16]
[1743220929575,0.29991283,613.47,613.02,5.16]
[1743220929774,0.32601962,613.46,613.02,5.16]
[1743220930074,0.29991283,613.45,613.02,5.16]
[1743220931974,0.28396457,613.44,613.02,5.16]
[1743220932171,0.28396457,613.44,613.02,0.755]
[1743220932172,0.29991283,613.43,613.02,0.755]
[1743220932375,0.29991283,613.43,611.96,0.28396457]
[1743220932576,0.29991283,613.43,611.97,0.62178459]
[1743220932775,0.29991283,613.43,611.98,0.62177925]
[1743220933078,0.29991283,613.43,611.99,0.29497119]
[1743220933476,0.28396457,613.44,611.98,0.32680806]
[1743220933679,0.30004327,613.43,611.98,0.32680806]
[1743220935079,0.30002997,613.42,611.99,1.298]
[1743220935274,0.30002997,613.43,611.99,1.298]
[1743220935476,0.30002997,613.42,612.0,1.335]
[1743220935679,0.30002997,613.43,612.0,3.657]
[1743220935874,0.28396457,613.44,612.0,3.657]
[1743220936281,0.28396457,613.44,612.01,0.984]
[1743220937377,0.32601962,613.46,612.01,0.984]
[1743220937574,0.29999452,613.43,612.02,0.29489155]
[1743220937774,0.29999452,613.42,612.02,0.29489155]
[1743220937978,0.29999452,613.45,612.02,0.29489155]
[1743220938172,0.29999452,613.44,612.02,0.29489155]
[1743220938376,0.29999452,613.45,612.02,0.29489155]
[1743220938575,0.28408163,613.44,612.01,0.984]
[1743220938781,0.2999871,613.43,612.02,0.29480363]
[1743220940576,0.2999871,613.45,612.02,0.29480363]
[1743220940776,0.32603025,613.44,612.02,0.29480363]
[1743220940980,0.2999871,613.43,612.02,0.29480363]
[1743220941180,0.32604088,613.42,612.02,0.29480363]
[1743220941380,0.2999871,613.41,612.02,0.29480363]
[1743220943886,0.28403758,613.4,612.02,0.29480363]
[1743220944480,0.28403758,613.4,612.01,0.984]
[1743220944685,0.28403758,613.4,612.02,0.2943843]
[1743220946082,0.28403758,613.4,612.03,0.32678136]
[1743220946285,0.28403758,613.4,612.04,0.2943843]
[1743220946489,0.32604088,613.42,612.05,0.32677068]
[1743220946784,0.2999081,613.41,612.06,0.2943843]
[1743220946985,0.2999081,613.41,612.07,0.32676001]
[1743220947182,0.2999081,613.41,612.08,0.2943843]
[1743220947387,0.32604088,613.42,612.09,0.32674933]
[1743220947581,0.32604088,613.42,612.1,0.2943843]
[1743220947785,0.28403062,613.4,612.1,0.2943843]
[1743220948287,0.28403062,613.4,612.11,0.32673865]
[1743220948487,0.28403062,613.4,612.12,0.2943843]
[1743220950289,0.28403062,613.4,612.13,0.32672798]
[1743220950488,0.28403062,613.4,612.14,0.2943843]
[1743220950681,0.28403062,613.4,612.15,0.3267173]
[1743220950882,0.28403062,613.4,612.16,0.2943843]
[1743220951086,0.28403062,613.4,612.17,0.32670663]
[1743220951389,0.28403062,613.4,612.18,0.2943843]
[1743220951590,0.28403062,613.4,612.19,0.32669596]
[1743220951790,0.28403062,613.4,612.2,0.2943843]
[1743220952089,0.28403062,613.4,612.21,0.32668528]
[1743220952487,0.32604088,613.42,612.21,0.32668528]
[1743220953690,0.28388928,613.41,612.21,0.32668528]
[1743220955386,0.32604088,613.42,612.21,0.32668528]
[1743220956794,0.2838916,613.41,612.21,0.32668528]
[1743220958491,0.32604088,613.42,612.21,0.32668528]
[1743220959495,0.32604088,613.42,612.22,0.29429348]
[1743220959696,0.2838916,613.41,612.22,0.29429348]
[1743220961493,0.32604088,613.42,612.22,0.29429348]
[1743220962097,0.32604088,613.42,612.21,0.32668528]
[1743220962701,0.28393793,613.41,612.21,0.32668528]
[1743220963497,0.32605151,613.4,612.21,0.32668528]
[1743220965603,0.58394707,613.39,612.21,0.32668528]
[1743220965799,0.28397152,613.39,612.21,0.32668528]
[1743220966202,0.62603391,613.38,612.22,0.29464169]
[1743220966403,0.62603923,613.37,612.22,0.29464169]
[1743220966602,0.62604454,613.36,612.22,0.29464169]
[1743220966796,0.62604986,613.35,612.22,0.29464169]
[1743220967001,0.62605518,613.34,612.22,0.29464169]
[1743220967198,0.62606049,613.33,612.22,0.29464169]
[1743220967504,0.62606581,613.32,612.22,0.29464169]
[1743220967702,0.29997177,613.31,612.21,0.32668528]
[1743220967901,0.62607113,613.31,612.21,0.32668528]
[1743220968103,0.62607644,613.3,612.21,0.32668528]
[1743220968405,0.62608176,613.29,612.21,0.32668528]
[1743220968607,0.62608708,613.28,612.21,0.32668528]
[1743220968804,0.32612063,613.27,612.21,0.32668528]
[1743220969103,0.29997177,613.26,612.21,0.32668528]
[1743220969303,0.32613126,613.25,612.21,0.32668528]
[1743220969504,0.29997177,613.24,612.21,0.32668528]
[1743220969804,0.3261419,613.23,612.21,0.32668528]
[1743220970104,0.29997177,613.22,612.21,0.32668528]
[1743220971504,0.29997177,613.22,612.18,1.225]
[1743220971701,0.28410714,613.21,612.18,1.225]
[1743220971913,0.29997177,613.2,612.18,1.225]
[1743220972306,0.32616317,613.19,612.18,1.225]
[1743220972507,0.29997177,613.18,612.18,1.225]
[1743220972708,0.62614026,613.18,612.18,1.225]
[1743220972905,0.29997177,613.17,612.18,1.225]
[1743220973803,0.32616849,613.18,612.18,1.225]
[1743220974509,0.30004097,613.17,612.18,1.225]
[1743220974709,0.58408434,613.17,612.18,1.225]
[1743220974909,0.28404337,613.17,612.18,1.225]
[1743220975412,0.30004183,613.16,612.18,1.225]
[1743220975911,0.28404337,613.17,612.18,1.225]
[1743220976508,0.32616849,613.18,612.18,1.225]
[1743220976907,0.28410135,613.16,612.18,1.225]
[1743220979516,0.32616849,613.18,612.18,1.225]
[1743220979718,0.28411062,613.15,612.18,1.225]
[1743220982018,0.28411062,613.15,612.09,0.962]
[1743220982418,0.32616849,613.18,612.09,0.962]
[1743220982619,0.32616849,613.18,612.1,0.29472537]
[1743220982818,0.32616849,613.18,612.1,1.51772537]
[1743220983218,0.32616849,613.18,612.1,1.223]
[1743220983415,0.32616849,613.18,612.11,0.29474821]
[1743220983619,0.28401671,613.17,612.1,1.223]
[1743220984623,0.28401671,613.17,612.1,2.6]
[1743220984820,0.30002987,613.16,612.11,0.29480813]
[1743220986318,0.28401671,613.17,612.1,2.6]
[1743220986522,0.30003197,613.16,612.11,0.29477501]
[1743220988720,0.30003197,613.17,612.11,0.29477501]
[1743220989725,0.28412918,613.16,612.11,0.29477501]
[1743220989921,0.30003197,613.15,612.11,0.29477501]
[1743220990127,0.30003197,613.15,612.12,0.891]
[1743220990425,0.30003197,613.15,612.13,0.29477501]
[1743220990626,0.30003197,613.15,612.12,0.891]
[1743220991822,0.30003197,613.14,612.12,0.891]
[1743220992026,0.30003197,613.17,612.12,0.891]
[1743220992223,0.32616849,613.18,612.12,0.891]
[1743220992828,0.28406308,613.17,612.12,0.891]
[1743220994327,0.32616849,613.18,612.12,0.891]
[1743220994729,0.28412686,613.16,612.12,0.891]
[1743220994930,0.28412686,613.16,612.13,0.908]
[1743220997527,0.32616849,613.18,612.13,0.908]
[1743220997933,0.32616849,613.18,612.14,1.192]
[1743220998734,0.28405149,613.17,612.14,1.192]
[1743221000330,0.28405149,613.17,612.15,1.443]
[1743221000534,0.32616849,613.18,612.15,1.443]
[1743221000835,0.30003782,613.17,612.15,1.443]
[1743221001735,0.28412338,613.16,612.15,1.443]
[1743221001935,0.30003888,613.15,612.15,1.443]
[1743221003733,0.30003888,613.14,612.15,1.443]
[1743221003939,2.44269362,613.6,612.15,1.443]
[1743221004338,0.30004477,613.59,612.15,1.443]
[1743221004537,2.44269362,613.6,612.15,1.443]
[1743221004738,0.5841152,613.59,612.15,1.443]
[1743221005038,0.30004052,613.58,612.15,1.443]
[1743221006242,0.30004052,613.58,612.15,2.463]
[1743221009740,0.30004052,613.66,612.15,2.463]
[1743221009941,0.30004052,613.65,612.15,2.463]
[1743221010140,0.30004052,613.66,612.15,2.463]
[1743221010739,0.28406424,613.65,612.15,2.463]
[1743221010946,0.30004052,613.64,612.15,2.463]
[1743221011939,0.28406424,613.65,612.15,3.848]
[1743221012145,0.30003059,613.64,612.15,3.848]
[1743221012940,0.58409715,613.63,612.15,3.848]
[1743221013140,0.30003059,613.62,612.15,3.848]
[1743221015839,0.30003059,613.62,612.15,4.776]
[1743221018642,0.30003059,613.75,612.15,4.776]
[1743221018844,0.28405381,613.61,612.15,4.776]
[1743221019046,0.30003059,613.6,612.15,4.776]
[1743221019446,0.30003059,613.75,612.15,4.776]
[1743221020545,0.28405381,613.74,612.15,4.776]
[1743221020748,0.30003059,613.73,612.15,4.776]
[1743221024051,0.28405381,613.74,612.15,4.776]
[1743221024250,0.29995682,613.73,612.15,4.776]
[1743221026951,0.29995682,613.73,612.16,0.29382854]
[1743221027451,0.29995682,613.73,612.15,2.313]
[1743221027851,0.29995682,613.72,612.16,0.29384625]
[1743221028053,0.29995682,614.0,612.16,0.29384625]
[1743221028849,0.28397384,613.99,612.16,0.29384625]
[1743221029056,0.29995682,613.98,612.16,0.29384625]
[1743221029848,0.29995682,613.98,612.16,1.54484625]
[1743221030055,0.29995682,613.98,612.17,0.29384625]
[1743221030651,0.29995682,613.97,612.17,0.29384625]
[1743221030856,0.29995682,613.96,612.17,1.44084625]
[1743221031052,0.29995682,613.95,612.18,0.29384625]
[1743221031257,0.29995682,613.94,612.18,0.29384625]
[1743221031657,0.58389938,613.93,612.18,0.29384625]
[1743221031852,0.29995682,613.92,612.18,0.29384625]
[1743221032058,0.29995682,613.91,612.18,0.29384625]
[1743221032256,0.29995682,613.9,612.18,1.18584625]
[1743221032452,0.29995682,613.89,612.19,0.29384625]
[1743221032658,0.29995682,613.88,612.19,0.29384625]
[1743221032852,0.29995682,613.87,612.19,0.29384625]
[1743221033159,0.29995682,613.86,612.19,0.29384625]
[1743221033358,0.29995682,613.92,612.19,0.29384625]
[1743221033555,0.29995682,613.91,612.19,0.29384625]
[1743221033753,2.44269362,613.8,612.19,0.29384625]
[1743221033957,0.29995682,613.79,612.19,0.29384625]
[1743221034258,0.29995682,613.79,612.18,2.323]
[1743221034259,2.44269362,613.8,612.2,1.619]
[1743221034458,0.29986234,613.79,612.21,0.29319619]
[1743221036552,0.29986234,613.78,612.21,0.29319619]
[1743221036757,0.32585496,613.77,612.22,0.32667995]
[1743221037059,0.29986234,613.76,612.23,0.29319619]
[1743221039558,0.32585496,613.77,612.22,0.32667995]
[1743221039758,0.29986218,613.76,612.23,0.29322986]
[1743221039958,0.29986218,613.76,612.24,0.32666928]
[1743221040157,0.29986218,613.76,612.25,0.29322986]
[1743221040358,0.29986218,613.76,612.26,0.3266586]
[1743221040554,0.29986218,613.76,612.27,0.29322986]
[1743221040757,0.2839553,613.75,612.27,0.29322986]
[1743221040955,0.29986218,613.74,612.27,0.29322986]
[1743221041159,0.29986218,613.74,612.28,0.32664793]
[1743221041357,0.29986218,613.74,612.29,0.29322986]
[1743221041557,0.29986218,613.74,612.3,0.32663726]
[1743221041759,0.32587619,613.73,612.31,0.29322986]
[1743221041958,0.29986218,613.72,612.31,0.29322986]
[1743221042161,0.32588681,613.71,612.31,0.29322986]
[1743221042358,0.29986218,613.7,612.31,0.29322986]
[1743221042661,0.32589744,613.69,612.31,0.29322986]
[1743221042861,0.29986218,613.68,612.31,0.29322986]
[1743221043056,0.32590806,613.67,612.31,0.29322986]
[1743221043263,0.29986218,613.66,612.31,0.61986179]
[1743221043457,0.32591868,613.65,612.32,0.29322986]
[1743221043658,0.29986218,613.64,612.32,0.29322986]
[1743221043858,0.3259293,613.63,612.32,0.29322986]
[1743221044055,0.29986218,613.62,612.32,0.29322986]
[1743221046764,0.28396457,613.61,612.32,0.29322986]
[1743221047068,0.29986218,613.6,612.32,0.29322986]
[1743221047768,0.29986218,613.6,612.33,1.175]
[1743221047968,0.29986218,613.6,612.34,0.29322986]
[1743221048668,0.29986218,613.62,612.34,0.29322986]
[1743221048863,0.29986218,613.61,612.34,0.29322986]
[1743221049063,0.29986218,613.6,612.34,0.29322986]
[1743221049266,0.3259293,613.63,612.33,1.175]
[1743221049563,0.29986528,613.62,612.34,0.2931827]
[1743221049768,0.58375688,613.62,612.34,0.2931827]
[1743221049964,0.29986528,613.61,612.34,0.2931827]
[1743221051769,0.29986528,613.62,612.34,0.2931827]
[1743221051969,0.29986528,613.6,612.34,0.2931827]
[1743221052370,0.29986528,613.59,612.34,0.2931827]
[1743221052571,0.29986528,613.62,612.35,1.167]
[1743221052873,0.28396225,613.59,612.35,1.167]
[1743221053070,0.29986528,613.58,612.35,1.167]
[1743221053975,0.29986528,613.58,612.36,1.078]
[1743221054669,0.29986528,613.62,612.36,1.078]
[1743221054976,0.29986528,613.61,612.37,1.62424825]
[1743221055168,0.29986528,613.62,612.37,1.331]
[1743221055373,0.29986528,613.61,612.37,1.331]
[1743221055575,0.29986528,613.62,612.37,1.331]
[1743221055873,0.5838229,613.61,612.37,1.331]
[1743221056077,0.29986528,613.6,612.37,1.331]
[1743221057275,0.29986528,613.6,612.38,0.29330502]
[1743221057681,0.29986528,613.62,612.38,1.36930502]
[1743221057880,0.29986528,613.61,612.39,1.158]
[1743221058080,0.29986528,613.62,612.39,1.158]
[1743221058482,0.29986528,613.62,612.4,0.29330489]
[1743221058782,0.2839553,613.61,612.4,0.29330489]
[1743221058980,0.29986528,613.6,612.4,0.29330489]
[1743221059178,0.29986528,613.6,612.39,1.158]
[1743221059381,0.29986528,613.6,612.4,0.29331309]
[1743221060379,0.2839553,613.61,612.39,1.158]
[1743221063483,0.3259293,613.63,612.39,1.158]
[1743221064887,0.28383371,613.62,612.39,1.158]
[1743221065089,0.28383371,613.62,612.4,0.29306436]
[1743221065280,0.28383371,613.62,612.41,0.32657859]
[1743221065481,0.28383371,613.62,612.42,0.29306436]
[1743221065788,0.28383371,613.62,612.43,0.32656793]
[1743221066584,0.28383371,613.62,612.44,0.2930452]
[1743221066783,0.28383371,613.62,612.45,0.32655726]
[1743221066983,0.28383371,613.62,612.46,0.2930452]
[1743221067191,0.28383371,613.62,612.46,0.61959713]
[1743221067391,0.28383371,613.62,612.47,0.2930452]
[1743221067593,0.28383371,613.62,612.47,0.6195918]
[1743221067790,0.28383371,613.62,612.48,0.2930452]
[1743221067987,0.28383371,613.62,612.49,0.32653594]
[1743221068488,0.28383371,613.62,612.5,0.29297516]
[1743221068793,0.28383371,613.62,612.51,0.32652528]
[1743221068986,0.28383371,613.62,612.52,0.29297516]
[1743221069591,0.3259293,613.63,612.52,0.29297516]
[1743221070892,0.28381404,613.62,612.52,0.29297516]
[1743221071793,0.28381404,613.62,612.51,0.32652528]
[1743221071993,0.28381404,613.62,612.52,0.2929922]
[1743221072592,0.3259293,613.63,612.52,0.2929922]
[1743221073895,0.28381751,613.62,612.52,0.2929922]
[1743221074695,0.28381751,613.62,612.52,1.2279922]
[1743221074896,0.28381751,613.62,612.53,0.2929922]
[1743221075290,0.28381751,613.62,612.53,1.5659922]
[1743221075490,0.3259293,613.63,612.54,0.2929922]
[1743221076891,0.3259293,613.63,612.53,1.273]
[1743221076892,0.28381288,613.62,612.53,1.273]
[1743221077094,0.28381288,613.62,612.55,0.29296934]
[1743221077298,0.28381288,613.62,612.56,0.29296934]
[1743221077597,0.28381288,613.62,612.57,0.29296934]
[1743221077896,0.28381288,613.62,612.58,0.29296934]
[1743221078096,0.28381288,613.62,612.53,1.273]
[1743221078097,0.28381288,613.62,612.54,0.29296934]
[1743221078294,0.28381288,613.62,612.55,0.29296934]
[1743221078494,0.3259293,613.63,612.56,0.29296934]
[1743221078696,0.3259293,613.63,612.53,1.273]
[1743221078893,0.3259293,613.63,612.54,0.29296066]
[1743221079792,0.28382445,613.62,612.54,0.29296066]
[1743221080491,0.28382445,613.62,612.53,1.273]
[1743221080690,0.29976196,613.61,612.54,0.29309992]
[1743221081797,0.29976196,613.6,612.54,0.29309992]
[1743221081997,0.29976196,613.62,612.54,1.49209992]
[1743221082192,0.29976196,613.59,612.55,0.29309992]
[1743221082391,0.3259293,613.63,612.55,0.29309992]
[1743221082594,0.29976675,613.62,612.55,0.29309992]
[1743221082794,0.2838916,613.59,612.55,0.29309992]
[1743221082995,0.29976675,613.58,612.55,0.29309992]
[1743221083192,0.2838916,613.59,612.55,1.43009992]
[1743221083396,0.2838916,613.59,612.56,0.29309992]
[1743221084399,0.3259293,613.63,612.56,1.16609992]
[1743221084798,0.28389044,613.59,612.56,0.873]
[1743221086403,0.28389044,613.59,612.57,0.29311194]
[1743221087504,0.3259293,613.63,612.57,0.29311194]
[1743221087906,0.28388928,613.59,612.57,0.29311194]
[1743221089105,0.28388928,613.59,612.56,0.873]
[1743221090510,0.3259293,613.63,612.56,0.873]
[1743221091412,0.3259293,613.63,612.56,2.101]
[1743221091913,0.28380709,613.62,612.56,2.101]
[1743221093514,0.3259293,613.63,612.56,2.101]
[1743221093813,0.3259293,613.63,612.57,0.29309396]
[1743221094015,0.28388928,613.61,612.56,2.101]
[1743221096325,0.29976171,613.6,612.57,0.29300494]
[1743221098917,0.28388928,613.61,612.57,0.29300494]
[1743221099622,0.3259293,613.63,612.57,0.29300494]
[1743221100024,0.28388928,613.6,612.57,0.29300494]
[1743221100925,0.28388928,613.6,612.56,2.101]
[1743221102529,0.3259293,613.63,612.56,2.101]
[1743221102725,0.28390318,613.59,612.56,2.101]
[1743221104431,0.28390318,613.59,612.56,3.587]
[1743221107433,0.28390318,613.59,612.56,4.591]
[1743221108532,0.3259293,613.63,612.56,4.591]
[1743221108928,0.3259293,613.63,612.56,5.661]
[1743221109130,0.29981069,613.62,612.56,5.661]
[1743221109932,0.28390318,613.61,612.57,0.29335152]
[1743221111433,0.3259293,613.63,612.57,0.29335152]
[1743221112834,0.2838476,613.62,612.57,0.29335152]
[1743221114048,0.2838476,613.62,612.58,1.19911787]
[1743221114237,0.2838476,613.62,612.59,0.29311787]
[1743221117542,0.3259293,613.63,612.59,0.29311787]
[1743221117940,0.28388697,613.61,612.6,1.227]
[1743221118140,0.28388697,613.61,612.61,0.29311787]
[1743221120539,0.3259293,613.63,612.6,1.227]
[1743221121143,2.65838415,614.16,612.6,1.227]
[1743221121344,0.6253245,614.15,612.61,1.39703786]
[1743221121546,0.29967116,614.14,612.62,0.29303786]
[1743221121745,0.32566394,614.13,612.63,0.32646132]
[1743221121944,0.32566394,614.13,612.64,0.29303786]
[1743221121945,0.29967116,614.12,612.64,0.29303786]
[1743221122146,0.32567455,614.11,612.65,0.32645066]
[1743221122346,0.29967116,614.1,612.66,0.29303786]
[1743221122846,0.32568516,614.09,612.67,0.32644]
[1743221123048,0.29967116,614.08,612.68,0.29303786]
[1743221123442,0.29967116,614.08,612.69,0.32642935]
[1743221123646,0.29967116,614.08,612.7,0.29303786]
[1743221123946,0.32568516,614.09,612.7,0.29303786]
[1743221124347,0.32568516,614.09,612.71,0.29283998]
[1743221124553,0.32568516,614.09,612.72,0.29283998]
[1743221124751,0.28370991,614.08,612.72,0.29283998]
[1743221124948,0.28370991,614.08,612.73,0.32640804]
[1743221125251,0.60940037,614.08,612.74,0.29283998]
[1743221126152,0.60940037,614.08,612.75,0.32639738]
[1743221126354,0.60940037,614.08,612.76,0.29283998]
[1743221126651,0.60940037,614.08,612.76,0.61923204]
[1743221126851,0.60940037,614.08,612.77,0.29283998]
[1743221127051,0.29961108,614.07,612.77,1.33883998]
[1743221127352,0.29961108,614.07,612.78,0.29283998]
[1743221128052,0.29961687,614.06,612.79,0.29293574]
[1743221128252,0.29961687,614.07,612.78,0.29293574]
[1743221128453,0.60940037,614.08,612.79,0.29293574]
[1743221128655,0.60940037,614.08,612.77,1.046]
[1743221128952,0.29961618,614.07,612.78,0.29293656]
[1743221129550,0.60940037,614.08,612.78,0.29293656]
[1743221129950,0.29962206,614.07,612.78,0.29293656]
[1743221131254,0.29962206,614.07,612.78,1.31893656]
[1743221131655,0.29962206,614.07,612.79,0.29293656]
[1743221132555,0.60940037,614.08,612.79,0.29293656]
[1743221133156,0.60940037,614.08,612.8,0.29308516]
[1743221133358,0.60940037,614.08,612.79,0.29308516]
[1743221133858,0.29961225,614.07,612.79,0.29308516]
[1743221135951,0.28375155,614.06,612.79,0.29308516]
[1743221136159,0.62531862,614.05,612.78,1.026]
[1743221136463,0.62537217,614.04,612.79,0.2933768]
[1743221136660,0.62537747,614.03,612.79,0.2933768]
[1743221137161,0.29966049,614.02,612.79,0.2933768]
[1743221137658,0.32571698,614.03,612.78,1.026]
[1743221138761,0.28375387,614.02,612.78,1.026]
[1743221141463,0.32571698,614.03,612.78,1.026]
[1743221142755,0.28363939,614.02,612.78,1.026]
[1743221144560,0.32571698,614.03,612.78,1.987]
[1743221144960,0.28375734,614.01,612.78,1.987]
[1743221146762,0.28375734,614.01,612.78,3.495]
[1743221147563,0.32571698,614.03,612.79,0.29317438]
[1743221147960,0.28375734,614.0,612.79,0.29317438]
[1743221149259,0.28375734,614.0,612.78,2.469]
[1743221150967,0.28375734,614.0,612.79,0.32637608]
[1743221151765,0.28375734,614.0,612.8,0.29290144]
[1743221151966,0.28375734,614.0,612.81,0.32636543]
[1743221153665,0.32571698,614.03,612.82,0.29289429]
[1743221153863,0.32571698,614.03,612.83,0.32635478]
[1743221154067,0.28372032,614.0,612.84,0.29289429]
[1743221154270,0.28372032,614.0,612.85,0.32634412]
[1743221154470,0.28372032,614.0,612.86,0.29289429]
[1743221154669,0.28372032,614.0,612.87,0.32633348]